[Event "*** Titled Tuesday 3|2 Blitz"]
[Site "Chess.com"]
[Date "2017.06.06"]
[Round "2"]
[White "ArnaudovP"]
[Black "Frolik67"]
[Result "0-1"]
[WhiteElo "2404"]
[BlackElo "2311"]
[TimeControl "180+2"]
[EndTime "14:09:48 PDT"]
[Termination "Frolik67 won by checkmate"]

1. Nf3 {[%clk 0:03:02]} 1... d5 {[%clk 0:03:00.6]} 2. c4 {[%clk 0:03:02.4]} 2...
e6 {[%clk 0:03:01.3]} 3. g3 {[%clk 0:03:03.2]} 3... c6 {[%clk 0:03:01.2]} 4. Bg2
{[%clk 0:03:04]} 4... Bd6 {[%clk 0:03:02.3]} 5. O-O {[%clk 0:03:00.7]} 5... Nf6
{[%clk 0:03:03.2]} 6. d3 {[%clk 0:03:02.2]} 6... O-O {[%clk 0:03:04.2]} 7. b3
{[%clk 0:03:02.8]} 7... b6 {[%clk 0:03:05.1]} 8. Bb2 {[%clk 0:03:03.7]} 8... Bb7
{[%clk 0:03:06.4]} 9. Nbd2 {[%clk 0:03:04.6]} 9... Nbd7 {[%clk 0:03:07.3]} 10.
Qc2 {[%clk 0:03:03]} 10... c5 {[%clk 0:03:07.1]} 11. a3 {[%clk 0:02:59.8]} 11...
Qc7 {[%clk 0:03:07.7]} 12. Rfe1 {[%clk 0:02:59.1]} 12... e5 {[%clk 0:03:06.8]}
13. cxd5 {[%clk 0:02:58.7]} 13... Nxd5 {[%clk 0:03:05.7]} 14. Rac1 {[%clk
0:02:55]} 14... a5 {[%clk 0:03:04.3]} 15. Nc4 {[%clk 0:02:49.9]} 15... f6 {[%clk
0:03:05]} 16. e3 {[%clk 0:02:48.4]} 16... Rad8 {[%clk 0:03:05.6]} 17. Nxd6
{[%clk 0:02:42.5]} 17... Qxd6 {[%clk 0:03:06.4]} 18. d4 {[%clk 0:02:43.3]} 18...
exd4 {[%clk 0:03:05.5]} 19. exd4 {[%clk 0:02:43.3]} 19... Rfe8 {[%clk
0:03:06.6]} 20. dxc5 {[%clk 0:02:36.1]} 20... Nxc5 {[%clk 0:03:07.5]} 21. Nd4
{[%clk 0:02:34.8]} 21... Kh8 {[%clk 0:02:52.9]} 22. Qf5 {[%clk 0:02:26.2]} 22...
Ne7 {[%clk 0:02:50.3]} 23. Qh5 {[%clk 0:02:20.9]} 23... Bxg2 {[%clk 0:02:50.7]}
24. Kxg2 {[%clk 0:02:21.5]} 24... Nd3 {[%clk 0:02:51.2]} 25. Re6 {[%clk
0:01:59.3]} 25... Qd7 {[%clk 0:02:49.4]} 26. Rc2 {[%clk 0:01:37.6]} 26... Nxb2
{[%clk 0:02:47.9]} 27. Rxb2 {[%clk 0:01:38.4]} 27... Qxd4 {[%clk 0:02:48]} 28.
Rbe2 {[%clk 0:01:38.7]} 28... Qd7 {[%clk 0:02:40.1]} 29. Qf7 {[%clk 0:01:34.9]}
29... Qd5+ {[%clk 0:02:27.2]} 30. f3 {[%clk 0:01:35]} 30... Qxb3 {[%clk
0:02:27.4]} 31. R2e3 {[%clk 0:01:12.4]} 31... Qa2+ {[%clk 0:02:23.5]} 32. Kh3
{[%clk 0:01:12.2]} 32... Ng8 {[%clk 0:02:16.1]} 33. Qxe8 {[%clk 0:01:07.2]}
33... Rxe8 {[%clk 0:02:16.2]} 34. Rxe8 {[%clk 0:01:09.1]} 34... h6 {[%clk
0:02:08.9]} 35. f4 {[%clk 0:01:07.5]} 35... f5 {[%clk 0:02:07.9]} 36. Rb8 {[%clk
0:01:02.8]} 36... Kh7 {[%clk 0:02:03.4]} 37. Rxb6 {[%clk 0:01:03.2]} 37... Nf6
{[%clk 0:02:04.7]} 38. Re7 {[%clk 0:01:03.4]} 38... Ng4 {[%clk 0:02:05]} 39.
Rbb7 {[%clk 0:01:02.4]} 39... Qxh2# {[%clk 0:02:05.4]} 0-1

[Event "*** Titled Tuesday 3|2 Blitz"]
[Site "Chess.com"]
[Date "2017.06.06"]
[Round "2"]
[White "LaStreetCmaMaison"]
[Black "Journey_to_GrandMaster_YT"]
[Result "0-1"]
[WhiteElo "2476"]
[BlackElo "2321"]
[TimeControl "180+2"]
[EndTime "14:09:50 PDT"]
[Termination "Journey_to_GrandMaster_YT won by resignation"]

1. b3 {[%clk 0:03:02]} 1... d6 {[%clk 0:02:59.6]} 2. Bb2 {[%clk 0:03:02.7]} 2...
e5 {[%clk 0:03:00.5]} 3. e3 {[%clk 0:02:57.4]} 3... Nd7 {[%clk 0:03:01]} 4. Nf3
{[%clk 0:02:58.1]} 4... Ngf6 {[%clk 0:02:57.9]} 5. c4 {[%clk 0:02:52.6]} 5... c6
{[%clk 0:02:57.1]} 6. Qc2 {[%clk 0:02:28.7]} 6... Be7 {[%clk 0:02:57.6]} 7. d4
{[%clk 0:02:17.5]} 7... e4 {[%clk 0:02:56.8]} 8. Nfd2 {[%clk 0:02:19]} 8... d5
{[%clk 0:02:57.9]} 9. Nc3 {[%clk 0:02:20.9]} 9... O-O {[%clk 0:02:57.5]} 10. f3
{[%clk 0:02:22.5]} 10... exf3 {[%clk 0:02:57.7]} 11. Nxf3 {[%clk 0:02:24.4]}
11... Ng4 {[%clk 0:02:44.7]} 12. Qd3 {[%clk 0:01:55.6]} 12... dxc4 {[%clk
0:02:42.3]} 13. bxc4 {[%clk 0:01:54.7]} 13... Bh4+ {[%clk 0:02:40.7]} 14. g3
{[%clk 0:01:44.5]} 14... Bg5 {[%clk 0:02:34]} 15. Ne4 {[%clk 0:01:43.1]} 15...
Bxe3 {[%clk 0:02:23.6]} 16. h3 {[%clk 0:01:40.5]} 16... f5 {[%clk 0:02:12.1]}
17. hxg4 {[%clk 0:01:36.5]} 17... fxe4 {[%clk 0:02:10.6]} 18. Qxe4 {[%clk
0:01:38.4]} 18... Bh6 {[%clk 0:02:02]} 19. Bd3 {[%clk 0:01:35.6]} 19... Nf6
{[%clk 0:01:44]} 20. Qe2 {[%clk 0:01:29.7]} 20... Qa5+ {[%clk 0:01:22.8]} 21.
Kd1 {[%clk 0:01:19.1]} 21... Bxg4 {[%clk 0:01:21]} 22. Rf1 {[%clk 0:01:05.1]}
22... Rae8 {[%clk 0:01:14.5]} 23. Qc2 {[%clk 0:01:05.9]} 23... Bxf3+ {[%clk
0:01:10.2]} 0-1

[Event "*** Titled Tuesday 3|2 Blitz"]
[Site "Chess.com"]
[Date "2017.06.06"]
[Round "2"]
[White "jncool68"]
[Black "olgerts_indricans"]
[Result "0-1"]
[WhiteElo "2494"]
[BlackElo "2317"]
[TimeControl "180+2"]
[EndTime "14:10:02 PDT"]
[Termination "olgerts_indricans won on time"]

1. e4 {[%clk 0:03:02]} 1... c5 {[%clk 0:02:59.5]} 2. Nf3 {[%clk 0:03:01.9]} 2...
e6 {[%clk 0:03:00]} 3. d4 {[%clk 0:03:03.3]} 3... cxd4 {[%clk 0:03:01.5]} 4.
Nxd4 {[%clk 0:03:05.2]} 4... Nc6 {[%clk 0:03:02.4]} 5. Nc3 {[%clk 0:03:05.6]}
5... Qc7 {[%clk 0:03:02.4]} 6. Be3 {[%clk 0:03:06.1]} 6... a6 {[%clk 0:03:02.7]}
7. a3 {[%clk 0:03:06.7]} 7... Nf6 {[%clk 0:03:01.7]} 8. f4 {[%clk 0:03:07.4]}
8... d6 {[%clk 0:02:58.6]} 9. Qf3 {[%clk 0:03:07.7]} 9... Bd7 {[%clk 0:02:57.8]}
10. O-O-O {[%clk 0:03:07.1]} 10... Rc8 {[%clk 0:02:57.2]} 11. Be2 {[%clk
0:03:07.4]} 11... b5 {[%clk 0:02:57.5]} 12. g4 {[%clk 0:03:07.8]} 12... Nxd4
{[%clk 0:02:42.8]} 13. Bxd4 {[%clk 0:03:08]} 13... e5 {[%clk 0:02:43.1]} 14.
fxe5 {[%clk 0:03:06.7]} 14... dxe5 {[%clk 0:02:43.5]} 15. Be3 {[%clk 0:02:49.7]}
15... Bxa3 {[%clk 0:02:36.2]} 16. Bg5 {[%clk 0:02:46.7]} 16... Bxg4 {[%clk
0:02:26.8]} 17. Qe3 {[%clk 0:02:40.2]} 17... Bxe2 {[%clk 0:02:16]} 18. Bxf6
{[%clk 0:02:36.4]} 18... Bxd1 {[%clk 0:01:54.4]} 19. Bxg7 {[%clk 0:02:33.6]}
19... Rg8 {[%clk 0:01:49.8]} 20. Rg1 {[%clk 0:02:15.7]} 20... Qxc3 {[%clk
0:01:40.8]} 21. Qxc3 {[%clk 0:02:09.3]} 21... Rxc3 {[%clk 0:01:40.7]} 22. bxa3
{[%clk 0:02:07.8]} 22... Bxc2 {[%clk 0:01:34.9]} 23. Kb2 {[%clk 0:02:06.8]}
23... Rc4 {[%clk 0:01:35.1]} 0-1

[Event "*** Titled Tuesday 3|2 Blitz"]
[Site "Chess.com"]
[Date "2017.06.06"]
[Round "2"]
[White "axvesik"]
[Black "GMNeiksans"]
[Result "0-1"]
[WhiteElo "2451"]
[BlackElo "2685"]
[TimeControl "180+2"]
[EndTime "14:10:10 PDT"]
[Termination "GMNeiksans won by resignation"]

1. e4 {[%clk 0:03:02]} 1... c5 {[%clk 0:02:58.3]} 2. Nf3 {[%clk 0:02:58.2]} 2...
e6 {[%clk 0:02:58.4]} 3. d4 {[%clk 0:02:58.6]} 3... cxd4 {[%clk 0:02:59.2]} 4.
Nxd4 {[%clk 0:03:00]} 4... Nc6 {[%clk 0:03:00.1]} 5. Nc3 {[%clk 0:03:01.1]} 5...
Qc7 {[%clk 0:03:00.6]} 6. f4 {[%clk 0:03:02]} 6... a6 {[%clk 0:03:00.6]} 7. Nxc6
{[%clk 0:03:02.5]} 7... Qxc6 {[%clk 0:02:56.7]} 8. Bd3 {[%clk 0:03:01.6]} 8...
b5 {[%clk 0:02:52.7]} 9. Qe2 {[%clk 0:02:58.3]} 9... Nf6 {[%clk 0:02:46.8]} 10.
e5 {[%clk 0:02:52.7]} 10... b4 {[%clk 0:02:44.2]} 11. exf6 {[%clk 0:02:33.4]}
11... bxc3 {[%clk 0:02:44.2]} 12. Be4 {[%clk 0:02:34.5]} 12... d5 {[%clk
0:02:43.4]} 13. Bf3 {[%clk 0:02:22]} 13... gxf6 {[%clk 0:02:40.4]} 14. b3 {[%clk
0:02:05.3]} 14... Bc5 {[%clk 0:02:39.2]} 15. Be3 {[%clk 0:01:57.7]} 15... Qb6
{[%clk 0:02:37.6]} 16. Bxc5 {[%clk 0:01:52.4]} 16... Qxc5 {[%clk 0:02:37.7]} 17.
Rd1 {[%clk 0:01:32.7]} 17... Bb7 {[%clk 0:02:33.6]} 18. Bh5 {[%clk 0:00:58.4]}
18... Ke7 {[%clk 0:02:21.6]} 19. Rf1 {[%clk 0:00:59]} 19... a5 {[%clk
0:02:12.8]} 20. a4 {[%clk 0:00:58.1]} 20... Ba6 {[%clk 0:02:12.8]} 21. Rd3
{[%clk 0:00:39.5]} 21... Bxd3 {[%clk 0:02:09]} 22. Qxd3 {[%clk 0:00:40.4]} 22...
Qb4 {[%clk 0:02:05.1]} 23. Kd1 {[%clk 0:00:25.4]} 23... Rac8 {[%clk 0:01:59]}
24. Bf3 {[%clk 0:00:20.6]} 24... Qxf4 {[%clk 0:01:53.7]} 25. Bxd5 {[%clk
0:00:20]} 25... Qxh2 {[%clk 0:01:45.2]} 26. Qf3 {[%clk 0:00:17.3]} 26... Qe5
{[%clk 0:01:43]} 27. Be4 {[%clk 0:00:17.8]} 27... Rhd8+ {[%clk 0:01:42.1]} 28.
Bd3 {[%clk 0:00:19]} 28... Rxd3+ {[%clk 0:01:38.1]} 29. cxd3 {[%clk 0:00:17.6]}
29... c2+ {[%clk 0:01:38.8]} 0-1

[Event "*** Titled Tuesday 3|2 Blitz"]
[Site "Chess.com"]
[Date "2017.06.06"]
[Round "2"]
[White "gmcorrales"]
[Black "TheLancer"]
[Result "1-0"]
[WhiteElo "2549"]
[BlackElo "2415"]
[TimeControl "180+2"]
[EndTime "14:10:12 PDT"]
[Termination "gmcorrales won by resignation"]

1. e4 {[%clk 0:02:58.4]} 1... c5 {[%clk 0:03:01.1]} 2. Nf3 {[%clk 0:02:54.6]}
2... g6 {[%clk 0:03:02.6]} 3. d4 {[%clk 0:02:54.3]} 3... cxd4 {[%clk 0:03:04.5]}
4. Qxd4 {[%clk 0:02:55.6]} 4... Nf6 {[%clk 0:03:05.6]} 5. Nc3 {[%clk 0:02:54.5]}
5... Nc6 {[%clk 0:03:06.5]} 6. Qa4 {[%clk 0:02:54.4]} 6... d6 {[%clk 0:03:07.9]}
7. e5 {[%clk 0:02:55.4]} 7... dxe5 {[%clk 0:03:09.8]} 8. Nxe5 {[%clk 0:02:57.3]}
8... Bg7 {[%clk 0:03:10.8]} 9. Bb5 {[%clk 0:02:52.7]} 9... O-O {[%clk
0:03:10.5]} 10. Nxc6 {[%clk 0:02:51.5]} 10... bxc6 {[%clk 0:03:11.7]} 11. Bxc6
{[%clk 0:02:53.4]} 11... Rb8 {[%clk 0:03:13.2]} 12. Qxa7 {[%clk 0:02:21.2]}
12... Bf5 {[%clk 0:03:06.6]} 13. O-O {[%clk 0:02:21]} 13... Bxc2 {[%clk
0:02:54.5]} 14. a4 {[%clk 0:02:08.8]} 14... Ng4 {[%clk 0:02:44.6]} 15. Bf3
{[%clk 0:02:06.7]} 15... Ne5 {[%clk 0:02:40.9]} 16. Be2 {[%clk 0:02:03.8]} 16...
Nc6 {[%clk 0:02:03.9]} 17. Qe3 {[%clk 0:01:42.6]} 17... Nd4 {[%clk 0:01:58.1]}
18. a5 {[%clk 0:01:34.6]} 18... Nxe2+ {[%clk 0:01:42.1]} 19. Nxe2 {[%clk
0:01:34.4]} 19... Ra8 {[%clk 0:01:03.5]} 20. a6 {[%clk 0:01:24.9]} 20... Qd3
{[%clk 0:00:57]} 21. a7 {[%clk 0:01:24.4]} 21... Rfc8 {[%clk 0:00:28.7]} 22.
Qxe7 {[%clk 0:01:05.3]} 22... Re8 {[%clk 0:00:27.9]} 23. Qxe8+ {[%clk 0:01:06]}
1-0

[Event "*** Titled Tuesday 3|2 Blitz"]
[Site "Chess.com"]
[Date "2017.06.06"]
[Round "2"]
[White "robbykevlishvili"]
[Black "ProfCalculus"]
[Result "1-0"]
[WhiteElo "2092"]
[BlackElo "2166"]
[TimeControl "180+2"]
[EndTime "14:10:12 PDT"]
[Termination "robbykevlishvili won by checkmate"]

1. e4 {[%clk 0:03:02]} 1... c5 {[%clk 0:03:00.4]} 2. Nf3 {[%clk 0:03:02]} 2...
g6 {[%clk 0:03:01.1]} 3. d4 {[%clk 0:03:02.4]} 3... cxd4 {[%clk 0:03:01.9]} 4.
Qxd4 {[%clk 0:03:04.3]} 4... Nf6 {[%clk 0:03:02]} 5. e5 {[%clk 0:02:58.5]} 5...
Nc6 {[%clk 0:03:02.8]} 6. Qa4 {[%clk 0:02:57.6]} 6... Nd5 {[%clk 0:03:02.8]} 7.
Qb3 {[%clk 0:02:57.1]} 7... Nb6 {[%clk 0:02:52.6]} 8. Bf4 {[%clk 0:02:56.4]}
8... Bg7 {[%clk 0:02:41.7]} 9. Nc3 {[%clk 0:02:56.9]} 9... d5 {[%clk 0:02:35.8]}
10. exd6 {[%clk 0:02:55.1]} 10... Be6 {[%clk 0:02:36.6]} 11. Qa3 {[%clk
0:02:52.8]} 11... O-O {[%clk 0:02:14.1]} 12. O-O-O {[%clk 0:02:52.3]} 12... exd6
{[%clk 0:02:03.4]} 13. Bxd6 {[%clk 0:02:54.2]} 13... Re8 {[%clk 0:02:04]} 14.
Bb5 {[%clk 0:02:41.8]} 14... Qc8 {[%clk 0:02:03.5]} 15. Rhe1 {[%clk 0:02:39.5]}
15... Nc4 {[%clk 0:02:02.6]} 16. Bxc4 {[%clk 0:02:38.5]} 16... Bxc4 {[%clk
0:02:03.4]} 17. Ne4 {[%clk 0:02:38.2]} 17... Qg4 {[%clk 0:01:51.4]} 18. Ng3
{[%clk 0:02:31.5]} 18... Nd4 {[%clk 0:01:42.3]} 19. Nxd4 {[%clk 0:02:29.9]}
19... Bxd4 {[%clk 0:01:42.8]} 20. f3 {[%clk 0:02:28.8]} 20... Qg5+ {[%clk
0:01:34.2]} 21. Kb1 {[%clk 0:02:29.2]} 21... Rxe1 {[%clk 0:01:34.4]} 22. Rxe1
{[%clk 0:02:29.6]} 22... Qd2 {[%clk 0:01:35.3]} 23. Qb4 {[%clk 0:02:25.1]} 23...
Qxb4 {[%clk 0:01:28.6]} 24. Bxb4 {[%clk 0:02:25.5]} 24... Be6 {[%clk 0:01:28.4]}
25. Ne4 {[%clk 0:02:24.9]} 25... Rc8 {[%clk 0:01:27]} 26. Bc3 {[%clk 0:02:22.9]}
26... Bxc3 {[%clk 0:01:27.1]} 27. Nxc3 {[%clk 0:02:24.8]} 27... Kg7 {[%clk
0:01:26.1]} 28. Kc1 {[%clk 0:02:25.7]} 28... Rc5 {[%clk 0:01:24.8]} 29. Re3
{[%clk 0:02:16.8]} 29... h5 {[%clk 0:01:21.5]} 30. b3 {[%clk 0:02:13.7]} 30...
h4 {[%clk 0:01:19.6]} 31. h3 {[%clk 0:02:12.5]} 31... Rg5 {[%clk 0:01:16.6]} 32.
Re2 {[%clk 0:02:13.2]} 32... Bf5 {[%clk 0:01:16.4]} 33. Kd2 {[%clk 0:02:11.4]}
33... Be6 {[%clk 0:01:10.2]} 34. Ne4 {[%clk 0:02:11.7]} 34... Ra5 {[%clk
0:01:10.5]} 35. a4 {[%clk 0:02:12.2]} 35... b6 {[%clk 0:01:08.5]} 36. c4 {[%clk
0:02:12.3]} 36... Re5 {[%clk 0:01:07.4]} 37. Nc3 {[%clk 0:02:10.5]} 37... Rxe2+
{[%clk 0:01:06]} 38. Nxe2 {[%clk 0:02:08.8]} 38... Kf6 {[%clk 0:01:06.5]} 39.
Ke3 {[%clk 0:02:07.4]} 39... a5 {[%clk 0:01:02.3]} 40. Nc3 {[%clk 0:02:06.7]}
40... Ke5 {[%clk 0:01:01]} 41. Ne4 {[%clk 0:02:02.7]} 41... f5 {[%clk
0:00:57.5]} 42. f4# {[%clk 0:02:00.8]} 1-0

[Event "*** Titled Tuesday 3|2 Blitz"]
[Site "Chess.com"]
[Date "2017.06.06"]
[Round "2"]
[White "ehrenfeld"]
[Black "Patov"]
[Result "0-1"]
[WhiteElo "2403"]
[BlackElo "2325"]
[TimeControl "180+2"]
[EndTime "14:10:18 PDT"]
[Termination "Patov won by resignation"]

1. e4 {[%clk 0:02:57.8]} 1... c5 {[%clk 0:02:59.6]} 2. Nf3 {[%clk 0:02:58.2]}
2... Nc6 {[%clk 0:02:59.3]} 3. Bb5 {[%clk 0:02:59.1]} 3... e6 {[%clk 0:02:58.2]}
4. Bxc6 {[%clk 0:03:00.1]} 4... bxc6 {[%clk 0:02:57.2]} 5. d3 {[%clk 0:03:00.7]}
5... d5 {[%clk 0:02:53.4]} 6. O-O {[%clk 0:02:55.7]} 6... Ne7 {[%clk 0:02:53.5]}
7. Qe2 {[%clk 0:02:53.7]} 7... g6 {[%clk 0:02:52.8]} 8. e5 {[%clk 0:02:53.9]}
8... Nf5 {[%clk 0:02:50.8]} 9. Bg5 {[%clk 0:02:28.1]} 9... Be7 {[%clk
0:02:51.4]} 10. Bxe7 {[%clk 0:02:28.4]} 10... Qxe7 {[%clk 0:02:53.3]} 11. Nc3
{[%clk 0:02:27]} 11... O-O {[%clk 0:02:51]} 12. Na4 {[%clk 0:02:27.1]} 12... a5
{[%clk 0:02:40.2]} 13. c4 {[%clk 0:02:26.9]} 13... Nd4 {[%clk 0:02:38.3]} 14.
Nxd4 {[%clk 0:02:25.8]} 14... cxd4 {[%clk 0:02:40.2]} 15. Rac1 {[%clk
0:02:21.6]} 15... Ba6 {[%clk 0:02:41.1]} 16. b3 {[%clk 0:02:00.2]} 16... f6
{[%clk 0:02:36.4]} 17. exf6 {[%clk 0:02:00.1]} 17... Rxf6 {[%clk 0:02:32.6]} 18.
Qe5 {[%clk 0:01:58.8]} 18... dxc4 {[%clk 0:02:29.7]} 19. dxc4 {[%clk 0:01:57.4]}
19... Rd8 {[%clk 0:02:28.2]} 20. Rcd1 {[%clk 0:01:49.2]} 20... Rf5 {[%clk
0:02:26.5]} 21. Qe4 {[%clk 0:01:45]} 21... c5 {[%clk 0:02:24.2]} 22. Rfe1 {[%clk
0:01:40.3]} 22... Re8 {[%clk 0:02:16.4]} 23. Nb2 {[%clk 0:01:14.1]} 23... Bb7
{[%clk 0:02:14]} 24. Qe2 {[%clk 0:01:14.4]} 24... Qg5 {[%clk 0:02:10.3]} 25. f4
{[%clk 0:00:45]} 25... Rxf4 {[%clk 0:02:07.6]} 26. Rd3 {[%clk 0:00:20.7]} 26...
Re4 {[%clk 0:02:03.8]} 27. Qxe4 {[%clk 0:00:10.9]} 27... Bxe4 {[%clk 0:02:04.2]}
28. Rxe4 {[%clk 0:00:12.1]} 28... Qc1+ {[%clk 0:02:05.2]} 29. Nd1 {[%clk
0:00:13.2]} 29... Qc2 {[%clk 0:01:58.4]} 30. Nf2 {[%clk 0:00:12.2]} 30... Rf8
{[%clk 0:01:59.1]} 31. Rf3 {[%clk 0:00:08.9]} 31... Qc1+ {[%clk 0:01:49.5]} 0-1

[Event "*** Titled Tuesday 3|2 Blitz"]
[Site "Chess.com"]
[Date "2017.06.06"]
[Round "2"]
[White "PaulfromSPb"]
[Black "Blitzstream"]
[Result "1-0"]
[WhiteElo "2577"]
[BlackElo "2505"]
[TimeControl "180+2"]
[EndTime "14:10:19 PDT"]
[Termination "PaulfromSPb won by resignation"]

1. e4 {[%clk 0:03:00.9]} 1... b6 {[%clk 0:02:59.6]} 2. d4 {[%clk 0:03:01.5]}
2... Bb7 {[%clk 0:03:00.2]} 3. Nc3 {[%clk 0:03:02.6]} 3... e6 {[%clk 0:03:00.2]}
4. Bd3 {[%clk 0:03:02.1]} 4... g6 {[%clk 0:02:58.9]} 5. f4 {[%clk 0:03:02.8]}
5... Bg7 {[%clk 0:02:57.3]} 6. Nf3 {[%clk 0:03:03.9]} 6... Ne7 {[%clk
0:02:49.8]} 7. O-O {[%clk 0:03:03.7]} 7... d5 {[%clk 0:02:35.5]} 8. Be3 {[%clk
0:02:57.9]} 8... Nd7 {[%clk 0:02:31.8]} 9. Bf2 {[%clk 0:02:50.6]} 9... O-O
{[%clk 0:02:16.7]} 10. Qe2 {[%clk 0:02:49.4]} 10... c5 {[%clk 0:02:08.9]} 11.
dxc5 {[%clk 0:02:44.1]} 11... Nxc5 {[%clk 0:02:05.8]} 12. e5 {[%clk 0:02:45.1]}
12... Rc8 {[%clk 0:01:51.8]} 13. Nb5 {[%clk 0:02:44.5]} 13... Nxd3 {[%clk
0:01:33.6]} 14. cxd3 {[%clk 0:02:43.5]} 14... Ba6 {[%clk 0:01:30.4]} 15. Nd6
{[%clk 0:02:42.2]} 15... Rc6 {[%clk 0:01:31.1]} 16. Nd4 {[%clk 0:02:41.6]} 16...
Rxd6 {[%clk 0:01:31.2]} 17. exd6 {[%clk 0:02:42.2]} 17... Qxd6 {[%clk
0:01:33.1]} 18. Be3 {[%clk 0:02:38.9]} 18... Nf5 {[%clk 0:01:29.4]} 19. Nxf5
{[%clk 0:02:39]} 19... gxf5 {[%clk 0:01:18.3]} 20. Qd2 {[%clk 0:02:37]} 20... d4
{[%clk 0:01:17.4]} 21. Bf2 {[%clk 0:02:37.9]} 21... Qd5 {[%clk 0:01:18]} 22. Bh4
{[%clk 0:02:28.7]} 22... Bb7 {[%clk 0:01:10.3]} 23. Rf3 {[%clk 0:02:29.1]} 23...
Kh8 {[%clk 0:01:09.7]} 24. Rg3 {[%clk 0:02:27.3]} 24... Rg8 {[%clk 0:01:07.8]}
25. h3 {[%clk 0:02:23.1]} 25... e5 {[%clk 0:01:07.6]} 26. fxe5 {[%clk
0:02:20.5]} 26... Bxe5 {[%clk 0:01:08.2]} 27. Rxg8+ {[%clk 0:02:17.1]} 27...
Kxg8 {[%clk 0:01:10.1]} 28. Re1 {[%clk 0:02:16]} 28... Bf4 {[%clk 0:01:06.6]}
29. Bf6 {[%clk 0:02:07.3]} 29... h6 {[%clk 0:01:04.4]} 30. Re8+ {[%clk
0:02:01.3]} 30... Kh7 {[%clk 0:01:04.7]} 31. Rh8+ {[%clk 0:02:02.1]} 31... Kg6
{[%clk 0:01:05.5]} 32. Rg8+ {[%clk 0:02:03.2]} 32... Kxf6 {[%clk 0:01:03.2]} 33.
Qxf4 {[%clk 0:02:04]} 33... Qe5 {[%clk 0:00:46.1]} 34. Qxh6+ {[%clk 0:01:53.1]}
34... Ke7 {[%clk 0:00:45.6]} 35. Qf8+ {[%clk 0:01:53.6]} 35... Kd7 {[%clk
0:00:28.5]} 36. Qxf7+ {[%clk 0:01:50.2]} 36... Kc6 {[%clk 0:00:28.8]} 1-0

[Event "*** Titled Tuesday 3|2 Blitz"]
[Site "Chess.com"]
[Date "2017.06.06"]
[Round "2"]
[White "yian123"]
[Black "AllStarShark"]
[Result "1-0"]
[WhiteElo "2397"]
[BlackElo "2308"]
[TimeControl "180+2"]
[EndTime "14:10:40 PDT"]
[Termination "yian123 won by resignation"]

1. e4 {[%clk 0:03:02]} 1... c5 {[%clk 0:02:59.8]} 2. Nf3 {[%clk 0:03:02.5]} 2...
g6 {[%clk 0:03:00.7]} 3. d4 {[%clk 0:03:03.4]} 3... cxd4 {[%clk 0:03:00.4]} 4.
Qxd4 {[%clk 0:03:04.4]} 4... Nf6 {[%clk 0:03:00.9]} 5. Nc3 {[%clk 0:03:05.9]}
5... Nc6 {[%clk 0:03:01.9]} 6. Qa4 {[%clk 0:03:07.4]} 6... d6 {[%clk 0:02:54.8]}
7. e5 {[%clk 0:03:08.6]} 7... dxe5 {[%clk 0:02:51.8]} 8. Nxe5 {[%clk 0:03:10.5]}
8... Bd7 {[%clk 0:02:52.4]} 9. Nxd7 {[%clk 0:03:11.5]} 9... Qxd7 {[%clk
0:02:51.7]} 10. Be3 {[%clk 0:03:10]} 10... Bg7 {[%clk 0:02:49.6]} 11. Rd1 {[%clk
0:03:01.6]} 11... Qc8 {[%clk 0:02:35]} 12. Be2 {[%clk 0:02:57.3]} 12... O-O
{[%clk 0:02:33.7]} 13. O-O {[%clk 0:02:56]} 13... a6 {[%clk 0:02:26.4]} 14. Qh4
{[%clk 0:02:43.9]} 14... Ne5 {[%clk 0:02:10.6]} 15. Bd4 {[%clk 0:02:34.9]} 15...
Nc6 {[%clk 0:01:51.6]} 16. Bb6 {[%clk 0:02:06.6]} 16... Ne5 {[%clk 0:01:46.4]}
17. Rfe1 {[%clk 0:02:00.3]} 17... Ned7 {[%clk 0:01:38.4]} 18. Bd4 {[%clk
0:01:45.8]} 18... Nc5 {[%clk 0:01:36.7]} 19. Bf3 {[%clk 0:01:42]} 19... Ne6
{[%clk 0:01:35.8]} 20. Be5 {[%clk 0:01:37.6]} 20... Ra7 {[%clk 0:01:28]} 21. a4
{[%clk 0:01:28.2]} 21... b6 {[%clk 0:01:22.8]} 22. Qb4 {[%clk 0:01:27.3]} 22...
Qc5 {[%clk 0:01:07.9]} 23. Qxc5 {[%clk 0:01:21.2]} 23... bxc5 {[%clk 0:01:03.8]}
24. b3 {[%clk 0:01:18.1]} 24... Rd8 {[%clk 0:00:47.5]} 25. a5 {[%clk 0:00:58.6]}
25... Rxd1 {[%clk 0:00:43.4]} 26. Rxd1 {[%clk 0:00:53.7]} 26... Ne4 {[%clk
0:00:32.8]} 27. Bxg7 {[%clk 0:00:50.9]} 27... Nxc3 {[%clk 0:00:33.7]} 28. Bxc3
{[%clk 0:00:50.4]} 1-0